fUSD/lending_fUSD_20260405
["ID","MTS","AMOUNT","RATE_DAILY","PERIOD"]
[419831543,1775404247543,-150.0,0.00014793,2]
[419831544,1775404247553,-150.0,0.00014793,2]
[419831545,1775404247564,-1161.9,0.00014794,2]
[419831546,1775404247574,-1500.0,0.00014795,2]
[419831547,1775404247583,-1503.24663382,0.00014795,2]
[419831548,1775404247593,-1318.06583411,0.00014795,2]
[419831549,1775404247603,-1500.0,0.00014795,2]
[419831550,1775404247614,-1227.692277,0.00014795,2]
[419831551,1775404247623,-1500.0,0.00014795,2]
[419831552,1775404247633,-1500.0,0.00014795,2]
[419831553,1775404247642,-1500.0,0.00014795,2]
[419831554,1775404247651,-1500.0,0.00014795,2]
[419831555,1775404247661,-1500.0,0.00014795,2]
[419831556,1775404247671,-1500.0,0.00014795,2]
[419831557,1775404247680,-1500.0,0.00014795,2]
[419831558,1775404247691,-1500.0,0.00014795,2]
[419831559,1775404247701,-1500.0,0.00014795,2]
[419831560,1775404247711,-186.27125357,0.00014795,2]
[419831561,1775404247721,-418.3764967,0.00014795,2]
[419831562,1775404247730,-1500.0,0.00014795,2]
[419831563,1775404247739,-1500.0,0.00014795,2]
[419831564,1775404247749,-1500.0,0.00014795,2]
[419831565,1775404247758,-150.0,0.00014795,2]
[419831566,1775404247768,-553.41835149,0.00014795,2]
[419831567,1775404247777,-500.0,0.00014799,2]
[419831568,1775404247787,-500.0,0.00014799,2]
[419831569,1775404247796,-988.81,0.00014799,2]
[419831570,1775404247805,-554.52,0.00014799,2]
[419831571,1775404247814,-888.51,0.00014799,2]
[419831572,1775404247825,-500.0,0.00014799,2]
[419831573,1775404247834,-937.06,0.00014799,2]
[419831574,1775404247843,-573.05086874,0.00014799,2]
[419831575,1775404247855,-533.3,0.00014799,2]
[419831576,1775404247865,-1402.96,0.00014799,2]
[419831577,1775404247874,-638.6,0.00014799,2]
[419831578,1775404247882,-1004.05,0.00014799,2]
[419831579,1775404247891,-150.0,0.000148,2]
[419831580,1775404247901,-150.0,0.000148,2]
[419831581,1775404247910,-150.0,0.000148,2]
[419831582,1775404247919,-150.0,0.00014804,2]
[419831583,1775404247928,-150.0,0.00014806,2]
[419831584,1775404247938,-150.0,0.00014813,2]
[419831585,1775404247948,-150.0,0.00014816,2]
[419831586,1775404247957,-150.0,0.00014821,2]
[419831587,1775404247966,-150.0,0.00014821,2]
[419831588,1775404247975,-150.0,0.00014822,2]
[419831589,1775404247985,-150.0,0.00014828,2]
[419831590,1775404247994,-150.0,0.00014829,2]
[419831591,1775404248003,-953.31303788,0.00014829,2]
[419831592,1775404248013,-1500.0,0.00014829,2]
[419831593,1775404248022,-150.0,0.00014831,2]
[419831594,1775404248031,-4084.0,0.00014833,5]
[419831595,1775404248040,-3277.0,0.00014833,5]
[419831596,1775404248050,-150.0,0.00014836,2]
[419831597,1775404248059,-150.0,0.0001484,2]
[419831598,1775404248068,-150.0,0.00014844,2]
[419831599,1775404248078,-150.0,0.00014849,2]
[419831600,1775404248087,-150.0,0.00014849,2]
[419831601,1775404248097,-150.0,0.00014851,2]
[419831602,1775404248106,-150.0,0.00014857,2]
[419831603,1775404248116,-150.0,0.00014857,2]
[419831604,1775404248126,-150.0,0.00014857,2]
[419831605,1775404248135,-150.0,0.00014865,2]
[419831606,1775404248145,-150.0,0.00014873,2]
[419831607,1775404248154,-150.0,0.00014875,2]
[419831608,1775404248164,-150.0,0.00014877,2]
[419831609,1775404248174,-150.0,0.00014877,2]
[419831610,1775404248183,-150.0,0.00014878,2]
[419831611,1775404248193,-150.0,0.00014886,2]
[419831612,1775404248203,-150.0,0.00014892,2]
[419831613,1775404248213,-150.0,0.00014892,2]
[419831614,1775404248223,-150.0,0.00014896,2]
[419831615,1775404248232,-588.99,0.00014897,2]
[419831616,1775404248242,-969.24,0.00014897,2]
[419831617,1775404248251,-873.89,0.00014897,2]
[419831618,1775404248261,-500.0,0.00014897,2]
[419831619,1775404248271,-500.0,0.00014897,2]
[419831620,1775404248281,-150.0,0.00014899,2]
[419831621,1775404248290,-229.30734682,0.000149,2]
[419831622,1775404248300,-229.3073468,0.000149,2]
[419831623,1775404248311,-229.3073468,0.000149,2]
[419831624,1775404248321,-157.39168565,0.00014905,2]
[419831625,1775404248330,-150.0,0.00014905,2]
[419831626,1775404248339,-150.0,0.00014905,2]
[419831627,1775404248349,-150.0,0.0001491,2]
[419831628,1775404248358,-150.0,0.00014914,2]
[419831629,1775404248367,-150.0,0.00014916,2]
[419831630,1775404248376,-150.0,0.00014918,2]
[419831631,1775404248387,-150.0,0.00014919,2]
[419831632,1775404248396,-150.0,0.00014927,2]
[419831633,1775404248406,-150.0,0.00014933,2]
[419831634,1775404248415,-150.0,0.00014933,2]
[419831635,1775404248424,-150.0,0.00014933,2]
[419831636,1775404248433,-150.0,0.00014933,2]
[419831637,1775404248443,-150.0,0.0001494,2]
[419831638,1775404248452,-150.0,0.00014941,2]
[419831639,1775404248462,-150.0,0.00014943,2]
[419831640,1775404248471,-150.0,0.00014945,2]
[419831641,1775404248481,-150.0,0.00014954,2]
[419831642,1775404248490,-150.0,0.00014961,2]
[419831643,1775404248500,-150.0,0.00014961,2]
[419831644,1775404248509,-150.0,0.00014961,2]
[419831645,1775404248518,-150.0,0.00014963,2]
[419831646,1775404248527,-150.0,0.00014963,2]
[419831647,1775404248536,-150.0,0.00014967,5]
[419831648,1775404248546,-150.0,0.00014968,2]
[419831649,1775404248555,-6155.0,0.00014968,2]
[419831650,1775404248565,-12649.0,0.00014968,2]
[419831651,1775404248574,-3162.0,0.00014968,2]
[419831652,1775404248584,-150.0,0.00014971,2]
[419831653,1775404248593,-150.0,0.0001498,2]
[419831654,1775404248604,-150.0,0.00014982,2]
[419831655,1775404248614,-150.0,0.00014986,2]
[419831656,1775404248623,-150.0,0.00014989,2]
[419831657,1775404248634,-150.0,0.00014989,2]
[419831658,1775404248643,-195.69376943,0.0001499,2]
[419831659,1775404248653,-351.89653618,0.0001499,2]
[419831660,1775404248662,-150.0,0.00014998,2]
[419831661,1775404248672,-300.0,0.00015,2]
[419831662,1775404248681,-150.0,0.00015,2]
[419831663,1775404248692,-150.0,0.00015003,2]
[419831664,1775404248701,-150.0,0.00015008,2]
[419831665,1775404248712,-150.0,0.00015015,2]
[419831666,1775404248721,-150.0,0.00015015,2]
[419831667,1775404248731,-500.0,0.00015015,2]
[419831668,1775404248742,-2000.0,0.00015015,2]
[419831669,1775404248752,-150.0,0.00015018,2]
[419831670,1775404248762,-150.0,0.00015018,2]
[419831671,1775404248771,-150.0,0.00015019,2]
[419831672,1775404248781,-150.0,0.00015022,2]
[419831673,1775404248790,-150.0,0.00015023,2]
[419831674,1775404248800,-150.0,0.00015029,2]
[419831675,1775404248809,-150.0,0.00015031,2]
[419831676,1775404248819,-150.0,0.00015033,2]
[419831677,1775404248830,-10000.0,0.00015042,2]
[419831678,1775404248840,-150.0,0.00015044,2]
[419831679,1775404248850,-150.0,0.00015046,2]
[419831680,1775404248860,-150.0,0.00015046,2]
[419831681,1775404248870,-150.0,0.00015051,2]
[419831682,1775404248880,-150.0,0.00015054,2]
[419831683,1775404248889,-150.0,0.00015057,2]
[419831684,1775404248899,-150.0,0.00015065,2]
[419831685,1775404248909,-500.0,0.00015065,2]
[419831686,1775404248918,-500.0,0.00015065,2]
[419831687,1775404248928,-1161.9,0.00015068,2]
[419831688,1775404248938,-150.0,0.00015068,2]
[419831689,1775404248948,-5957.33,0.00015068,2]
[419831690,1775404248957,-800.0,0.00015068,2]
[419831691,1775404248966,-150.0,0.00015071,2]
[419831692,1775404248977,-150.0,0.00015074,2]
[419831693,1775404248987,-150.0,0.00015074,2]
[419831694,1775404248996,-150.0,0.00015076,2]
[419831695,1775404249005,-150.0,0.00015077,2]
[419831696,1775404249015,-150.0,0.00015086,2]
[419831697,1775404249024,-150.0,0.00015086,2]
[419831698,1775404249033,-150.0,0.00015086,2]
[419831699,1775404249042,-500.0,0.00015096,2]
[419831700,1775404249051,-150.0,0.00015099,2]
[419831701,1775404249061,-150.0,0.00015102,2]
[419831702,1775404249071,-150.0,0.00015102,2]
[419831703,1775404249081,-150.0,0.00015103,2]
[419831704,1775404249091,-150.0,0.00015106,2]
[419831705,1775404249101,-150.0,0.00015111,2]
[419831706,1775404249111,-150.0,0.00015114,2]
[419831707,1775404249121,-150.0,0.00015121,2]
[419831708,1775404249131,-150.0,0.00015121,2]
[419831709,1775404249141,-150.0,0.00015123,2]
[419831710,1775404249151,-150.0,0.00015127,2]
[419831711,1775404249159,-150.0,0.0001513,2]
[419831712,1775404249169,-150.0,0.0001513,2]
[419831713,1775404249180,-757.62285791,0.00015132,2]
[419831714,1775404249190,-150.0,0.00015138,2]
[419831715,1775404249199,-150.0,0.00015138,2]
[419831716,1775404249209,-1500000.0,0.00015142,2]
[419831717,1775404249218,-151.0,0.00015142,2]
[419831718,1775404249227,-151.0,0.00015142,2]
[419831719,1775404249237,-151.0,0.00015142,2]
[419831720,1775404249246,-151.0,0.00015142,2]
[419831721,1775404249256,-151.0,0.00015142,2]
[419831722,1775404249265,-151.0,0.00015142,2]
[419831723,1775404249274,-151.0,0.00015142,2]
[419831724,1775404249284,-892.448042,0.00015142,2]
[419831725,1775404249293,-892.448042,0.00015142,2]
[419831726,1775404249303,-892.448042,0.00015142,2]
[419831727,1775404249313,-892.448042,0.00015142,2]
[419831728,1775404249324,-150.0,0.00015143,2]
[419831729,1775404249334,-150.0,0.00015144,2]
[419831730,1775404249343,-150.0,0.00015148,2]
[419831731,1775404249353,-150.0,0.00015156,2]
[419831732,1775404249363,-257.85531972,0.00015157,2]
[419831733,1775404249373,-150.0,0.00015158,2]
[419831734,1775404249382,-150.0,0.00015158,2]
[419831735,1775404249392,-150.0,0.00015166,2]
[419831736,1775404249401,-150.0,0.00015169,2]
[419831737,1775404249410,-150.0,0.00015171,2]
[419831738,1775404249420,-500.0,0.00015173,2]
[419831739,1775404249429,-211.04857142,0.00015173,2]
[419831740,1775404249438,-500.0,0.00015173,2]
[419831741,1775404249447,-500.0,0.00015173,2]
[419831742,1775404249457,-500.0,0.00015173,2]
[419831743,1775404249466,-500.0,0.00015173,2]
[419831744,1775404249476,-500.0,0.00015173,2]
[419831745,1775404249486,-163.60261744,0.00015173,2]
[419831746,1775404249495,-500.0,0.00015173,2]
[419831747,1775404249504,-385.86149772,0.00015173,2]
[419831748,1775404249513,-500.0,0.00015173,2]
[419831749,1775404249523,-500.0,0.00015173,2]
[419831750,1775404249532,-500.0,0.00015173,2]
[419831751,1775404249542,-500.0,0.00015173,2]
[419831752,1775404249551,-500.0,0.00015173,2]
[419831753,1775404249561,-500.0,0.00015173,2]
[419831754,1775404249570,-500.0,0.00015173,2]
[419831755,1775404249580,-150.0,0.00015174,2]
[419831756,1775404249589,-150.0,0.00015174,2]
[419831757,1775404249599,-150.0,0.00015186,2]
[419831758,1775404249608,-150.0,0.00015186,2]
[419831759,1775404249618,-150.0,0.00015189,2]
[419831760,1775404249627,-150.0,0.0001519,2]
[419831761,1775404249637,-150.0,0.00015191,2]
[419831762,1775404249647,-150.0,0.000152,2]
[419831763,1775404249657,-150.0,0.000152,2]
[419831764,1775404249666,-150.0,0.000152,2]
[419831765,1775404249676,-150.0,0.000152,2]
[419831766,1775404249686,-150.0,0.000152,2]
[419831767,1775404249696,-150.0,0.000152,2]
[419831768,1775404249706,-150.0,0.000152,2]
[419831769,1775404249715,-150.0,0.000152,2]
[419831770,1775404249725,-150.0,0.00015209,2]
[419831771,1775404249735,-150.0,0.0001521,2]
[419831772,1775404249745,-150.0,0.00015211,2]
[419831773,1775404249755,-150.0,0.00015214,2]
[419831774,1775404249765,-150.0,0.00015214,2]
[419831775,1775404249775,-150.0,0.00015226,2]
[419831776,1775404249786,-150.0,0.00015226,2]
[419831777,1775404249796,-150.0,0.00015229,2]
[419831778,1775404249806,-150.0,0.00015231,2]
[419831779,1775404249816,-150.0,0.00015234,2]
[419831780,1775404249826,-150.0,0.00015242,2]
[419831781,1775404249835,-150.0,0.00015242,2]
[419831782,1775404249845,-63475.53379997,0.00015243,2]
[419831783,1775404249855,-150.0,0.00015244,2]
[419831784,1775404249864,-150.0,0.00015252,2]
[419831785,1775404249874,-150.0,0.00015256,2]
[419831786,1775404249884,-150.0,0.00015257,2]
[419831787,1775404249894,-150.0,0.00015262,2]
[419831788,1775404249904,-150.0,0.00015262,2]
[419831789,1775404249914,-150.0,0.0001527,2]
[419831790,1775404249924,-150.0,0.0001527,2]
[419831791,1775404249934,-150.0,0.00015273,2]
[419831792,1775404249944,-903.49,0.00015273,2]
[419831793,1775404249953,-150.0,0.00015277,2]
[419831794,1775404249963,-150.0,0.00015279,2]
[419831795,1775404249974,-150.0,0.00015279,2]
[419831796,1775404249985,-73369.80644077,0.00015284,2]
[419831797,1775404249995,-33032.4137,0.00015284,2]
[419831798,1775404250006,-1000.0,0.00015284,2]
[419831799,1775404250016,-150.0,0.00015286,2]
[419831800,1775404250026,-150.0,0.00015289,2]
[419831801,1775404250035,-150.0,0.00015294,2]
[419831802,1775404250046,-150.0,0.00015297,2]
[419831803,1775404250057,-150.0,0.00015298,2]
[419831804,1775404250067,-150.0,0.00015298,2]
[419831805,1775404250076,-150.0,0.00015301,2]
[419831806,1775404250087,-150.0,0.00015314,2]
[419831807,1775404250097,-150.0,0.00015314,2]
[419831808,1775404250107,-150.0,0.00015314,2]
[419831809,1775404250117,-150.0,0.00015323,2]
[419831810,1775404250128,-150.0,0.00015324,2]
[419831811,1775404250138,-150.0,0.00015326,2]
[419831812,1775404250148,-150.0,0.00015326,2]
[419831813,1775404250158,-150.0,0.00015329,2]
[419831814,1775404250168,-150.0,0.00015332,2]
[419831815,1775404250179,-350.0,0.00015332,2]
[419831816,1775404250189,-150.0,0.00015335,2]
[419831817,1775404250199,-500.0,0.00015339,2]
[419831818,1775404250209,-500.0,0.00015339,2]
[419831819,1775404250219,-1161.9,0.00015342,2]
[419831820,1775404250230,-500.0,0.00015342,2]
[419831821,1775404250240,-2000.0,0.00015342,2]
[419831822,1775404250250,-2000.0,0.00015342,2]
[419831823,1775404250261,-347.07116371,0.00015342,2]
[419831824,1775404250271,-1753.85680119,0.00015342,2]
[419831825,1775404250282,-2000.0,0.00015342,2]
[419831826,1775404250293,-1558.37452133,0.00015342,2]
[419831827,1775404250304,-2000.0,0.00015342,2]
[419831828,1775404250315,-1000.0,0.00015342,2]
[419831829,1775404250325,-2000.0,0.00015342,2]
[419831830,1775404250335,-2000.0,0.00015342,2]
[419831831,1775404250345,-2000.0,0.00015342,2]
[419831832,1775404250355,-2000.0,0.00015342,2]
[419831833,1775404250366,-2000.0,0.00015342,2]
[419831834,1775404250375,-150.0,0.00015343,2]
[419831835,1775404250387,-150.0,0.00015346,2]
[419831836,1775404250397,-150.0,0.00015349,2]
[419831837,1775404250407,-150.0,0.00015354,2]
[419831838,1775404250417,-150.0,0.00015354,2]
[419831839,1775404250428,-150.0,0.00015356,2]
[419831840,1775404250439,-150.0,0.00015367,2]
[419831841,1775404250449,-150.0,0.00015369,2]
[419831842,1775404250459,-150.0,0.00015371,2]
[419831843,1775404250469,-500.0,0.00015373,2]
[419831844,1775404250479,-500.0,0.00015373,2]
[419831845,1775404250489,-500.0,0.00015373,2]
[419831846,1775404250499,-150.0,0.00015377,2]
[419831847,1775404250509,-515.96545288,0.00015377,2]
[419831848,1775404250520,-150.0,0.00015378,2]
[419831849,1775404250530,-503.0,0.00015378,3]
[419831850,1775404250541,-150.0,0.00015381,2]
[419831851,1775404250551,-150.0,0.00015382,2]
[419831852,1775404250561,-150.0,0.00015382,2]
[419831853,1775404250571,-155.80569417,0.00015384,2]
[419831854,1775404250581,-341935.6184455,0.00015384,2]
[419831855,1775404250592,-22106.8594334,0.00015384,2]
[419831856,1775404250601,-150.0,0.00015385,2]
[419831857,1775404250612,-150.0,0.00015385,2]
[419831858,1775404250622,-5888.0,0.0001539,2]
[419831859,1775404250632,-150.0,0.00015392,2]
[419831860,1775404250642,-477.12,0.00015395,2]
[419831861,1775404250653,-150.0,0.00015397,2]
[419831862,1775404250663,-150.0,0.000154,2]
[419831863,1775404250673,-150.0,0.00015402,2]
[419831864,1775404250683,-150.0,0.00015411,2]
[419831865,1775404250693,-150.0,0.00015411,2]
[419831866,1775404250703,-150.0,0.00015414,2]
[419831867,1775404250713,-150.0,0.00015418,2]
[419831868,1775404250723,-150.0,0.0001542,2]
[419831869,1775404250733,-150.0,0.00015429,2]
[419831870,1775404250743,-150.0,0.00015432,2]
[419831871,1775404250753,-150.0,0.00015437,2]
[419831872,1775404250764,-150.0,0.00015437,2]
[419831873,1775404250774,-150.0,0.00015439,2]
[419831874,1775404250784,-150.0,0.00015439,2]
[419831875,1775404250794,-150.0,0.00015439,2]
[419831876,1775404250805,-150.0,0.00015446,2]
[419831877,1775404250815,-150.0,0.00015455,2]
[419831878,1775404250825,-150.0,0.00015457,2]
[419831879,1775404250835,-150.0,0.00015459,2]
[419831880,1775404250846,-150.0,0.0001546,2]
[419831881,1775404250856,-5888.0,0.00015461,2]
[419831882,1775404250866,-5888.0,0.00015463,2]
[419831883,1775404250876,-588.99,0.00015465,2]
[419831884,1775404250886,-969.24,0.00015465,2]
[419831885,1775404250896,-873.89,0.00015465,2]
[419831886,1775404250907,-632.4,0.00015465,2]
[419831887,1775404250917,-500.0,0.00015465,2]
[419831888,1775404250928,-150.0,0.00015467,2]
[419831889,1775404250938,-150.0,0.00015467,2]
[419831890,1775404250948,-150.0,0.00015467,2]
[419831891,1775404250959,-150.0,0.00015467,2]
[419831892,1775404250971,-514.08970738,0.00015472,2]
[419831893,1775404250981,-150.0,0.00015473,2]
[419831894,1775404250991,-150.0,0.00015481,2]
[419831895,1775404251001,-150.0,0.00015482,2]
[419831896,1775404251011,-150.0,0.00015484,2]
[419831897,1775404251022,-150.0,0.00015486,2]
[419831898,1775404251032,-150.0,0.0001549,2]
[419831899,1775404251043,-150.0,0.00015495,2]
[419831900,1775404251053,-150.0,0.00015495,2]
[419831901,1775404251063,-167.9673,0.000155,2]
[419831902,1775404251073,-150.0,0.00015501,2]
[419831903,1775404251083,-150.0,0.00015504,2]
[419831904,1775404251093,-150.0,0.00015508,2]
[419831905,1775404251103,-150.0,0.00015508,2]
[419831906,1775404251113,-1000.0,0.00015512,2]
[419831907,1775404251123,-150.0,0.00015514,2]
[419831908,1775404251133,-150.0,0.00015522,2]
[419831909,1775404251143,-150.0,0.00015523,2]
[419831910,1775404251153,-150.0,0.00015523,2]
[419831911,1775404251163,-150.0,0.00015525,2]
[419831912,1775404251174,-150.0,0.00015527,2]
[419831913,1775404251184,-150.0,0.00015535,2]
[419831914,1775404251194,-150.0,0.00015543,2]
[419831915,1775404251204,-150.0,0.00015543,2]
[419831916,1775404251214,-150.0,0.00015543,2]
[419831917,1775404251225,-500.0,0.00015544,2]
[419831918,1775404251235,-500.0,0.00015544,2]
[419831919,1775404251245,-500.0,0.00015544,2]
[419831920,1775404251255,-420.19790691,0.00015544,2]
[419831921,1775404251266,-988.81,0.00015544,2]
[419831922,1775404251276,-988.81,0.00015544,2]
[419831923,1775404251286,-554.52,0.00015544,2]
[419831924,1775404251296,-554.52,0.00015544,2]
[419831925,1775404251306,-888.51,0.00015544,2]
[419831926,1775404251317,-888.51,0.00015544,2]
[419831927,1775404251327,-500.0,0.00015544,2]
[419831928,1775404251337,-500.0,0.00015544,2]
[419831929,1775404251347,-937.06,0.00015544,2]
[419831930,1775404251357,-937.06,0.00015544,2]
[419831931,1775404251367,-533.3,0.00015544,2]
[419831932,1775404251377,-533.3,0.00015544,2]
[419831933,1775404251387,-1402.96,0.00015544,2]
[419831934,1775404251397,-1402.96,0.00015544,2]
[419831935,1775404251407,-638.6,0.00015544,2]
[419831936,1775404251416,-638.6,0.00015544,2]
[419831937,1775404251426,-1004.05,0.00015544,2]
[419831938,1775404251437,-1004.05,0.00015544,2]
[419831939,1775404251447,-150.0,0.00015549,2]
[419831940,1775404251458,-150.0,0.00015551,2]
[419831941,1775404251468,-150.0,0.00015551,2]
[419831942,1775404251479,-350.0,0.00015551,2]
[419831943,1775404251489,-1000.0,0.00015554,2]
[419831944,1775404251499,-150.0,0.00015556,2]
[419831945,1775404251509,-1000.0,0.00015559,2]
[419831946,1775404251519,-150.0,0.0001556,2]
[419831947,1775404251529,-150.0,0.00015564,2]
[419831948,1775404251539,-150.0,0.00015569,2]
[419831949,1775404251548,-150.0,0.00015571,2]
[419831950,1775404251559,-150.0,0.00015572,2]
[419831951,1775404251570,-150.0,0.00015578,2]
[419831952,1775404251582,-150.0,0.00015579,2]
[419831953,1775404251593,-150.0,0.00015579,2]
[419831954,1775404251604,-150.0,0.00015584,2]
[419831955,1775404251615,-1000.0,0.00015586,2]
[419831956,1775404251625,-150.0,0.00015587,2]
[419831957,1775404251636,-150.0,0.00015594,2]
[419831958,1775404251646,-150.0,0.00015596,2]
[419831959,1775404251656,-996.49996996,0.00015597,2]
[419831960,1775404251667,-150.0,0.000156,2]
[419831961,1775404251677,-167.9673,0.000156,2]
[419831962,1775404251687,-150.0,0.000156,2]
[419831963,1775404251698,-150.0,0.000156,2]
[419831964,1775404251709,-150.0,0.000156,2]
[419831965,1775404251720,-150.0,0.00015605,2]
[419831966,1775404251731,-150.0,0.00015607,2]
[419831967,1775404251741,-150.0,0.00015607,2]
[419831968,1775404251752,-500.0,0.00015613,2]
[419831969,1775404251763,-500.0,0.00015613,2]
[419831970,1775404252073,-150.0,0.00015613,2]
[419831971,1775404252083,-1161.9,0.00015616,2]
[419831972,1775404252093,-500.0,0.00015616,2]
[419831973,1775404252103,-150.0,0.00015617,2]
[419831974,1775404252113,-500.0,0.00015619,2]
[419831975,1775404252123,-1000.0,0.00015621,2]
[419831976,1775404252133,-150.0,0.00015626,2]
[419831977,1775404252143,-150.0,0.00015627,2]
[419831978,1775404252152,-150.0,0.00015629,2]
[419831979,1775404252162,-150.0,0.00015631,2]
[419831980,1775404252172,-150.0,0.00015631,2]
[419831981,1775404252181,-1000.0,0.00015633,2]
[419831982,1775404252191,-150.0,0.00015635,2]
[419831983,1775404252201,-150.0,0.00015635,2]
[419831984,1775404252211,-150.0,0.00015639,2]
[419831985,1775404252222,-150.0,0.00015639,2]
[419831986,1775404252232,-150.0,0.00015644,2]
[419831987,1775404252242,-969.90749356,0.00015646,2]
[419831988,1775404252251,-150.0,0.00015647,2]
[419831989,1775404252262,-150.0,0.00015648,2]
[419831990,1775404252272,-128144.00810889,0.0001565,2]
[419831991,1775404252282,-97697.2091726,0.0001565,2]
[419831992,1775404252291,-1000.0,0.0001565,2]
[419831993,1775404252301,-150.0,0.00015657,2]
[419831994,1775404252311,-150.0,0.00015662,2]
[419831995,1775404252320,-150.0,0.00015663,2]
[419831996,1775404252330,-150.0,0.00015663,2]
[419831997,1775404252341,-150.0,0.00015666,2]
[419831998,1775404252352,-184.61627026,0.00015667,2]
[419831999,1775404252362,-150.0,0.00015668,2]
[419832000,1775404252372,-150.0,0.00015683,2]
[419832001,1775404252382,-150.0,0.00015684,2]
[419832002,1775404252391,-350.0,0.00015684,2]
[419832003,1775404252402,-150.0,0.00015685,2]
[419832004,1775404252411,-150.0,0.00015686,2]
[419832005,1775404252422,-150.0,0.00015688,2]
[419832006,1775404252433,-150.0,0.0001569,2]
[419832007,1775404252444,-150.0,0.00015691,2]
[419832008,1775404252455,-150.0,0.00015691,2]
[419832009,1775404252464,-150.0,0.00015692,2]
[419832010,1775404252473,-150.0,0.00015697,2]
[419832011,1775404252485,-5888.0,0.00015698,2]
[419832012,1775404252496,-167.9673,0.000157,2]
[419832013,1775404252508,-167.9673,0.000157,2]
[419832014,1775404252519,-150.0,0.00015701,2]
[419832015,1775404252530,-1000.0,0.00015702,2]
[419832016,1775404252541,-150.0,0.00015707,2]
[419832017,1775404252552,-150.0,0.00015709,2]
[419832018,1775404252562,-150.0,0.00015714,2]
[419832019,1775404252574,-1000.0,0.00015715,2]
[419832020,1775404252586,-150.0,0.00015719,2]
[419832021,1775404252596,-150.0,0.00015719,2]
[419832022,1775404252605,-150.0,0.00015719,2]
[419832023,1775404252615,-1000.0,0.00015721,2]
[419832024,1775404252624,-1000.0,0.00015721,2]
[419832025,1775404252634,-500.76237275,0.00015721,2]
[419832026,1775404252643,-1000.0,0.00015721,2]
[419832027,1775404252652,-180.00096908,0.00015721,2]
[419832028,1775404252662,-1000.0,0.00015721,2]
[419832029,1775404252671,-1000.0,0.00015721,2]
[419832030,1775404252681,-1000.0,0.00015721,2]
[419832031,1775404252690,-1000.0,0.00015721,2]
[419832032,1775404252699,-1000.0,0.00015721,2]
[419832033,1775404252709,-1000.0,0.00015721,2]
[419832034,1775404252719,-1000.0,0.00015721,2]
[419832035,1775404252728,-1000.0,0.00015721,2]
[419832036,1775404252738,-1000.0,0.00015721,2]
[419832037,1775404252748,-150.0,0.0001573,2]
[419832038,1775404252757,-150.0,0.0001573,2]
[419832039,1775404252767,-150.0,0.00015733,2]
[419832040,1775404252776,-150.0,0.00015733,2]
[419832041,1775404252787,-150.0,0.00015736,2]
[419832042,1775404252797,-842.00936818,0.0001574,2]